Workbook

Sheet CTRL+Z
A1: k*X2 - 1
A2: k | C2: Xn | D2: Xn+1
A3: 2 | C3: 0.5 | D3: =$A$3*C3*C3-1 -> -0.5 | E3: -1 | F3: -1 | G3: =+$A$3*E3^2-1 -> 1
C4: =D3 -> -0.5 | D4: =$A$3*C4*C4-1 -> -0.5 | E4: -0.9 | F4: -0.9 | G4: =+$A$3*E4^2-1 -> 0.62
C5: =D4 -> -0.5 | D5: -0.5 | E5: -0.8 | F5: -0.8 | G5: 0.28
C6: -0.5 | D6: -0.5 | E6: -0.7 | F6: -0.7 | G6: -0.02
C7: -0.5 | D7: -0.5 | E7: -0.6 | F7: -0.6 | G7: -0.28
C8: -0.5 | D8: -0.5 | E8: -0.5 | F8: -0.5 | G8: -0.5
C9: -0.5 | D9: -0.5 | E9: -0.4 | F9: -0.4 | G9: -0.68
C10: -0.5 | D10: -0.5 | E10: -0.3 | F10: -0.3 | G10: -0.82
C11: -0.5 | D11: -0.5 | E11: -0.2 | F11: -0.2 | G11: -0.92
C12: -0.5 | D12: -0.5 | E12: -0.1 | F12: -0.1 | G12: -0.98
C13: -0.5 | D13: -0.5 | E13: 0 | F13: 0 | G13: -1
C14: -0.5 | D14: -0.5 | E14: 0.1 | F14: 0.1 | G14: -0.98
C15: -0.5 | D15: -0.5000000001 | E15: 0.2 | F15: 0.2 | G15: -0.92
C16: -0.5000000001 | D16: -0.4999999998 | E16: 0.3 | F16: 0.3 | G16: -0.82
C17: -0.4999999998 | D17: -0.5000000003 | E17: 0.4 | F17: 0.4 | G17: -0.68
C18: -0.5000000003 | D18: -0.4999999994 | E18: 0.5 | F18: 0.5 | G18: -0.5
C19: -0.4999999994 | D19: -0.5000000012 | E19: 0.6 | F19: 0.6 | G19: -0.28
C20: -0.5000000012 | D20: -0.4999999976 | E20: 0.7 | F20: 0.7 | G20: -0.02
C21: -0.4999999976 | D21: -0.5000000048 | E21: 0.8 | F21: 0.8 | G21: 0.28
C22: -0.5000000048 | D22: -0.4999999904 | E22: 0.9 | F22: 0.9 | G22: 0.62
C23: -0.4999999904 | D23: -0.5000000192 | E23: 1 | F23: 1 | G23: 1
C24: -0.5000000192 | D24: -0.4999999615
C25: -0.4999999615 | D25: -0.500000077
C26: -0.500000077 | D26: -0.499999846
C27: -0.499999846 | D27: -0.500000308
C28: -0.500000308 | D28: -0.4999993841
C29: -0.4999993841 | D29: -0.5000012318
C30: -0.5000012318 | D30: -0.4999975363
C31: -0.4999975363 | D31: -0.5000049273
C32: -0.5000049273 | D32: -0.4999901453
C33: -0.4999901453 | D33: -0.5000197091
C34: -0.5000197091 | D34: -0.4999605809
C35: -0.4999605809 | D35: -0.500078835
C36: -0.500078835 | D36: -0.4998423176
C37: -0.4998423176 | D37: -0.5003153152
C38: -0.5003153152 | D38: -0.4993691709
C39: -0.4993691709 | D39: -0.5012608624
C40: -0.5012608624 | D40: -0.4974750956
C41: -0.4974750956 | D41: -0.5050370584
C42: -0.5050370584 | D42: -0.4898751392
C43: -0.4898751392 | D43: -0.520044696
C44: -0.520044696 | D44: -0.4591070283
C45: -0.4591070283 | D45: -0.5784414731
C46: -0.5784414731 | D46: -0.3308109244
C47: -0.3308109244 | D47: -0.7811282646
C48: -0.7811282646 | D48: 0.2203227314
C49: 0.2203227314 | D49: -0.902915788
C50: -0.902915788 | D50: 0.6305138406
C51: 0.6305138406 | D51: -0.2049045937
C52: -0.2049045937 | D52: -0.916028215
C53: -0.916028215 | D53: 0.6782153812
C54: 0.6782153812 | D54: -0.08004779329
C55: -0.08004779329 | D55: -0.9871847016
C56: -0.9871847016 | D56: 0.9490672701
C57: 0.9490672701 | D57: 0.8014573662
C58: 0.8014573662 | D58: 0.2846678197
C59: 0.2846678197 | D59: -0.8379284649
C60: -0.8379284649 | D60: 0.4042482245
C61: 0.4042482245 | D61: -0.673166746
C62: -0.673166746 | D62: -0.09369306414
C63: -0.09369306414 | D63: -0.9824432195
C64: -0.9824432195 | D64: 0.9303893589
C65: 0.9303893589 | D65: 0.7312487185
C66: 0.7312487185 | D66: 0.06944937653
C67: 0.06944937653 | D67: -0.9903535682
C68: -0.9903535682 | D68: =$A$3*C68*C68-1 -> 0.9616003801
C69: =D68 -> 0.9616003801 | D69: 0.849350582
C70: 0.849350582 | D70: 0.4427928223
C71: 0.4427928223 | D71: -0.6078690331
C72: -0.6078690331 | D72: -0.2609904772
C73: -0.2609904772 | D73: -0.8637679417
C74: -0.8637679417 | D74: 0.4921901141
C75: 0.4921901141 | D75: -0.5154977832
C76: -0.5154977832 | D76: -0.4685240709
C77: -0.4685240709 | D77: -0.5609703899
C78: -0.5609703899 | D78: -0.3706244433
C79: -0.3706244433 | D79: -0.725275044
C80: -0.725275044 | D80: 0.05204777898
C81: 0.05204777898 | D81: -0.9945820574
C82: -0.9945820574 | D82: 0.9783869378
C83: 0.9783869378 | D83: 0.9144820002
C84: 0.9144820002 | D84: 0.6725546575
C85: 0.6725546575 | D85: -0.09534046527
C86: -0.09534046527 | D86: -0.9818203914
C87: -0.9818203914 | D87: 0.9279425618
C88: 0.9279425618 | D88: 0.722154796
C89: 0.722154796 | D89: 0.04301509866
C90: 0.04301509866 | D90: -0.9962994026
C91: -0.9962994026 | D91: 0.9852249991
C92: 0.9852249991 | D92: 0.9413365979
C93: 0.9413365979 | D93: 0.7722291809
C94: 0.7722291809 | D94: 0.1926758158
C95: 0.1926758158 | D95: -0.92575206
C96: -0.92575206 | D96: 0.7140337533
C97: 0.7140337533 | D97: 0.01968840157
C98: 0.01968840157 | D98: -0.9992247337
C99: -0.9992247337 | D99: 0.9969001368
B100: 1 | C100: 0.9969001368 | D100: 0.9876197656
B101: 2 | C101: 0.9876197656 | D101: 0.9507856028
B102: 3 | C102: 0.9507856028 | D102: 0.807986525
B103: 4 | C103: 0.807986525 | D103: 0.3056844491
B104: 5 | C104: 0.3056844491 | D104: -0.8131140351
B105: 6 | C105: -0.8131140351 | D105: 0.3223088683
B106: 7 | C106: 0.3223088683 | D106: -0.7922339869
B107: 8 | C107: -0.7922339869 | D107: 0.2552693799
B108: 9 | C108: 0.2552693799 | D108: -0.8696750874
B109: 10 | C109: -0.8696750874 | D109: 0.5126695152
B110: 11 | C110: 0.5126695152 | D110: -0.4743399363
B111: 12 | C111: -0.4743399363 | D111: -0.5500032497
B112: 13 | C112: -0.5500032497 | D112: -0.3949928507
B113: 14 | C113: -0.3949928507 | D113: -0.6879612959
B114: 15 | C114: -0.6879612959 | D114: -0.05341851082
B115: 16 | C115: -0.05341851082 | D115: -0.9942929254
B116: 17 | C116: -0.9942929254 | D116: 0.977236843
B117: 18 | C117: 0.977236843 | D117: 0.9099836947
B118: 19 | C118: 0.9099836947 | D118: 0.6561406492
B119: 20 | C119: 0.6561406492 | D119: -0.1389588969
B120: 21 | C120: -0.1389588969 | D120: -0.96138085
B121: 22 | C121: -0.96138085 | D121: 0.8485062773
B122: 23 | C122: 0.8485062773 | D122: 0.4399258053
B123: 24 | C123: 0.4399258053 | D123: -0.6129305717
B124: 25 | C124: -0.6129305717 | D124: -0.2486322284
B125: 26 | C125: -0.2486322284 | D125: -0.87636403
B126: 27 | C126: -0.87636403 | D126: 0.536027826
B127: 28 | C127: 0.536027826 | D127: -0.4253483395
B128: 29 | C128: -0.4253483395 | D128: -0.6381575802
B129: 30 | C129: -0.6381575802 | D129: -0.1855098057
B130: 31 | C130: -0.1855098057 | D130: -0.931172224
B131: 32 | C131: -0.931172224 | D131: 0.7341634215
B132: 33 | C132: 0.7341634215 | D132: =$A$3*C132*C132-1 -> 0.07799185906
B133: 34 | C133: =D132 -> 0.07799185906 | D133: -0.9878345398
B134: 35 | C134: -0.9878345398 | D134: 0.9516341562
B135: 36 | C135: 0.9516341562 | D135: 0.8112151345
B136: 37 | C136: 0.8112151345 | D136: 0.3161399889
B137: 38 | C137: 0.3161399889 | D137: -0.8001110149
B138: 39 | C138: -0.8001110149 | D138: 0.2803552723
B139: 40 | C139: 0.2803552723 | D139: -0.8428018426
B140: 41 | C140: -0.8428018426 | D140: 0.4206298919
B141: 42 | C141: 0.4206298919 | D141: -0.646140988
B142: 43 | C142: -0.646140988 | D142: -0.1650036471
B143: 44 | C143: -0.1650036471 | D143: -0.9455475929
B144: 45 | C144: -0.9455475929 | D144: 0.7881205007
B145: 46 | C145: 0.7881205007 | D145: 0.2422678473
B146: 47 | C146: 0.2422678473 | D146: -0.8826125803
B147: 48 | C147: -0.8826125803 | D147: 0.5580099338
B148: 49 | C148: 0.5580099338 | D148: -0.3772498276
B149: 50 | C149: -0.3772498276 | D149: -0.7153651351
B150: 51 | C150: -0.7153651351 | D150: 0.02349455305
B151: 52 | C151: 0.02349455305 | D151: -0.998896012
B152: 53 | C152: -0.998896012 | D152: 0.9955864854
B153: 54 | C153: 0.9955864854 | D153: 0.9823848998
B154: 55 | C154: 0.9823848998 | D154: 0.9301601827
B155: 56 | C155: 0.9301601827 | D155: 0.730395931
B156: 57 | C156: 0.730395931 | D156: 0.06695643212
B157: 58 | C157: 0.06695643212 | D157: -0.9910336724
B158: 59 | C158: -0.9910336724 | D158: 0.9642954796
B159: 60 | C159: 0.9642954796 | D159: 0.8597315441
B160: 61 | C160: 0.8597315441 | D160: 0.4782766559
B161: 62 | C161: 0.4782766559 | D161: -0.5425028809
B162: 63 | C162: -0.5425028809 | D162: -0.4113812484
B163: 64 | C163: -0.4113812484 | D163: -0.6615309369
B164: 65 | C164: -0.6615309369 | D164: -0.1247536392
B165: 66 | C165: -0.1247536392 | D165: -0.968873059
B166: 67 | C166: -0.968873059 | D166: 0.877430009
B167: 68 | C167: 0.877430009 | D167: 0.5397668414
B168: 69 | C168: 0.5397668414 | D168: -0.4173035138
B169: 70 | C169: -0.4173035138 | D169: -0.6517155548
B170: 71 | C170: -0.6517155548 | D170: -0.1505336712
B171: 72 | C171: -0.1505336712 | D171: -0.9546792276
B172: 73 | C172: -0.9546792276 | D172: 0.8228248554
B173: 74 | C173: 0.8228248554 | D173: 0.3540814852
B174: 75 | C174: 0.3540814852 | D174: -0.7492526036
B175: 76 | C175: -0.7492526036 | D175: 0.122758928
B176: 77 | C176: 0.122758928 | D176: -0.9698604912
B177: 78 | C177: -0.9698604912 | D177: 0.8812587447
B178: 79 | C178: 0.8812587447 | D178: 0.5532339502
B179: 80 | C179: 0.5532339502 | D179: -0.3878643926
B180: 81 | C180: -0.3878643926 | D180: -0.6991224258
B181: 82 | C181: -0.6991224258 | D181: -0.02245566739
B182: 83 | C182: -0.02245566739 | D182: -0.998991486
B183: 84 | C183: -0.998991486 | D183: 0.9959679782
B184: 85 | C184: 0.9959679782 | D184: 0.9839044273
B185: 86 | C185: 0.9839044273 | D185: 0.936135844
B186: 87 | C186: 0.936135844 | D186: 0.7527006367
B187: 88 | C187: 0.7527006367 | D187: 0.1331164971
B188: 89 | C188: 0.1331164971 | D188: -0.9645599964
B189: 90 | C189: -0.9645599964 | D189: 0.8607519733
B190: 91 | C190: 0.8607519733 | D190: 0.4817879192
B191: 92 | C191: 0.4817879192 | D191: -0.5357608019
B192: 93 | C192: -0.5357608019 | D192: -0.4259207263
B193: 94 | C193: -0.4259207263 | D193: -0.6371830699
B194: 95 | C194: -0.6371830699 | D194: -0.1879954709
B195: 96 | C195: -0.1879954709 | D195: -0.9293154058
B196: 97 | C196: -0.9293154058 | D196: =$A$3*C196*C196-1 -> 0.727254247
B197: 98 | C197: =D196 -> 0.727254247 | D197: 0.0577974795
B198: 99 | C198: 0.0577974795 | D198: -0.9933189027
B199: 100 | C199: -0.9933189027 | D199: 0.973364885
B200: 101 | C200: 0.973364885 | D200: 0.8948783988
... 800 more rows
